bitfinex/quotes_ETHUSD_20250529
["timestamp","ask_amount","ask_price","bid_price","bid_amount"]
[1748507163653,4.8072962,2723.7,2723.0,8.0]
[1748507163813,3.67177685,2723.5,2723.0,3.67241807]
[1748507164017,3.67177685,2723.5,2722.9,8.0]
[1748507164348,3.895,2723.4,2723.0,3.6723845]
[1748507164938,3.895,2723.3,2723.1,8.0]
[1748507165139,3.895,2723.2,2723.0,3.50748615]
[1748507165360,3.895,2723.2,2722.9,3.67249158]
[1748507166030,3.895,2723.2,2723.0,3.67241966]
[1748507166735,7.56719814,2723.2,2722.6,3.67288698]
[1748507167058,3.67229716,2723.1,2722.1,7.61762267]
[1748507167231,4.9891,2723.2,2722.1,7.61762267]
[1748507167232,8.66128227,2723.2,2722.6,3.67293696]
[1748507167556,8.66128227,2723.2,2722.7,8.0]
[1748507168129,8.66134089,2723.2,2722.6,3.67290799]
[1748507168356,8.66134089,2723.2,2722.2,11.67349937]
[1748507168655,8.66134089,2723.2,2722.7,8.0]
[1748507170121,8.66134089,2723.2,2722.6,3.67286378]
[1748507170355,8.66134089,2723.2,2722.7,3.67282468]
[1748507171189,4.9891,2723.2,2722.7,3.67282468]
[1748507171327,3.895,2723.2,2722.8,3.67268506]
[1748507171667,3.67132205,2723.9,2722.8,3.67268506]
[1748507171668,3.67100773,2724.1,2722.8,8.85658976]
[1748507171868,3.67093719,2724.1,2723.5,3.67163727]
[1748507172166,4.74883719,2724.1,2723.5,3.67163727]
[1748507172657,4.74883719,2724.1,2723.4,3.67187911]
[1748507172658,3.67109407,2724.0,2723.4,11.67183248]
[1748507173450,3.893,2723.9,2723.4,8.0]
[1748507173647,7.56422058,2723.9,2723.4,11.67181326]
[1748507173858,3.893,2723.9,2723.4,11.67187919]
[1748507174185,7.56421788,2723.9,2723.4,11.67187919]
[1748507174327,7.56421788,2723.9,2723.4,8.0]
[1748507174846,3.893,2723.8,2723.4,8.0]
[1748507175053,3.67163671,2723.6,2722.8,0.30658976]
[1748507175238,3.67163671,2723.6,2722.4,7.07215717]
[1748507175239,3.67163671,2723.6,2722.6,13.893]
[1748507175440,3.67174627,2723.5,2723.0,3.67235398]
[1748507175765,3.67169013,2723.6,2723.0,3.67235398]
[1748507176131,3.6716111,2723.6,2723.0,3.67235398]
[1748507176332,3.67190032,2723.4,2722.9,11.67249113]
[1748507176527,3.67235956,2723.1,2722.6,3.67294838]
[1748507176961,3.6722882,2723.1,2722.5,3.67309458]
[1748507177132,3.6722882,2723.1,2722.6,3.67295073]
[1748507177333,1.067,2723.3,2722.5,3.67297037]
[1748507177523,3.67237817,2723.1,2722.5,3.67297037]
[1748507178028,3.67237817,2723.1,2722.6,3.67295365]
[1748507178228,3.67237817,2723.1,2722.5,3.67305597]
[1748507179226,3.67237817,2723.1,2722.6,3.67293206]
[1748507179425,3.67231509,2723.1,2722.5,3.67303356]
[1748507180154,3.67231509,2723.1,2722.6,3.6729472]
[1748507180552,3.67231509,2723.1,2722.6,8.0]
[1748507180740,3.67231509,2723.1,2722.6,3.6729383]
[1748507181267,3.67231509,2723.1,2722.6,8.0]
[1748507182426,1.067,2723.3,2722.6,11.67292825]
[1748507182664,3.67239138,2723.1,2722.6,8.0]
[1748507183256,3.67247203,2723.0,2722.6,8.0]
[1748507183586,1.067,2723.3,2722.6,8.0]
[1748507183587,3.67229097,2723.1,2722.6,3.67293588]
[1748507184485,3.67243009,2723.0,2722.6,8.0]
[1748507184666,3.67243009,2723.0,2722.5,3.67302499]
[1748507184866,3.6723474,2723.1,2722.5,3.67302499]
[1748507185075,3.6723474,2723.1,2722.6,3.67295928]
[1748507185597,3.67221969,2723.2,2722.6,3.67295928]
[1748507185805,3.67228819,2723.1,2722.6,3.67295928]
[1748507186297,3.67228819,2723.1,2722.5,3.67302593]
[1748507186498,3.67228819,2723.1,2722.6,3.6729462]
[1748507188594,3.67252329,2723.0,2722.4,3.67321232]
[1748507188770,3.67228819,2723.1,2722.5,3.67298371]
[1748507189593,3.67228819,2723.1,2722.6,3.67295494]
[1748507189798,3.67221249,2723.2,2722.6,3.67295494]
[1748507190905,3.67230372,2723.1,2722.6,3.67295494]
[1748507192157,4.73910153,2723.3,2722.6,3.67295494]
[1748507192363,7.56227739,2723.2,2722.6,3.67295494]
[1748507192580,7.56227739,2723.2,2722.7,3.67279134]
[1748507192978,4.957,2723.3,2722.7,3.67279134]
[1748507193705,3.67201752,2723.3,2722.8,3.67262851]
[1748507194213,3.67201752,2723.3,2722.7,3.67276064]
[1748507194517,3.67201752,2723.3,2722.6,3.70965786]
[1748507194518,7.56088835,2723.4,2722.1,0.05]
[1748507194519,12.82459937,2722.2,2722.1,0.05]
[1748507194813,12.82459937,2722.2,2721.1,0.05]
[1748507194814,12.74764933,2721.2,2721.1,0.05]
[1748507194963,18.96742165,2721.2,2721.1,0.05]
[1748507195163,21.4157238,2721.2,2721.1,0.05]
[1748507196574,19.09995148,2721.2,2721.1,0.05]
[1748507199718,3.67597344,2720.4,2719.4,8.82338318]
[1748507199876,3.6761481,2720.3,2719.6,3.67692199]
[1748507200079,5.0376,2720.6,2719.6,3.67694317]
[1748507200394,3.67613123,2720.3,2719.6,3.67694317]
[1748507200574,3.67613123,2720.3,2719.7,3.67686915]
[1748507200981,3.67613123,2720.3,2719.6,3.67693249]
[1748507201181,3.67613123,2720.3,2719.7,3.67687017]
[1748507201396,3.67613123,2720.3,2719.5,3.67713497]
[1748507201397,3.67613123,2720.3,2719.6,11.67696151]
[1748507201657,5.0376,2720.6,2719.6,11.67696151]
[1748507201658,3.67622367,2720.2,2719.6,11.67696151]
[1748507202133,3.67622367,2720.2,2719.5,11.67708655]
[1748507202490,3.67622367,2720.2,2719.6,3.67700875]
[1748507202824,5.0376,2720.6,2719.1,0.05]
[1748507202825,3.67698066,2719.7,2719.1,0.05]
[1748507203021,3.67672724,2719.9,2719.1,0.05]
[1748507203022,3.901,2719.9,2719.1,0.05]
[1748507203323,3.67683118,2719.8,2719.2,3.67746629]
[1748507204009,3.901,2719.9,2719.1,3.72760368]
[1748507204215,3.901,2719.9,2719.1,0.05]
[1748507204526,7.57760805,2719.9,2719.1,3.72759817]
[1748507204708,3.67675436,2719.8,2719.1,3.72759817]
[1748507205427,3.901,2719.9,2719.2,3.67754701]
[1748507205428,7.57766025,2719.9,2719.2,3.67754701]
[1748507205822,7.57768823,2719.9,2719.2,3.67755222]
[1748507206022,7.57763402,2719.9,2719.3,3.67741698]
[1748507206230,3.901,2719.9,2719.4,3.67727011]
[1748507206537,1.1558,2720.0,2719.5,3.67708423]
[1748507206698,1.1558,2720.0,2719.3,3.67739292]
[1748507206699,3.901,2719.9,2719.4,3.67722005]
[1748507206898,1.1558,2720.0,2719.5,3.67714031]
[1748507207598,3.899,2719.9,2719.5,3.67714031]
[1748507207798,1.1558,2720.0,2719.5,3.67714031]
[1748507208125,3.899,2719.9,2719.6,3.67690933]
[1748507208637,2.1471,2720.3,2719.7,3.67679751]
[1748507208638,3.899,2720.0,2719.7,3.67679751]
[1748507208840,3.67620761,2720.2,2719.6,3.67695743]
[1748507209004,3.898,2720.0,2719.6,3.67695743]
[1748507209440,4.76322966,2720.3,2719.8,3.67673535]
[1748507209624,1.81210025,2722.7,2719.9,3.6764749]
[1748507209625,1.0964,2720.6,2719.9,3.6764749]
[1748507209939,3.67598112,2720.4,2719.8,3.67669969]
[1748507210305,3.897,2720.5,2720.0,3.67646532]
[1748507210728,4.77212984,2720.6,2720.0,3.67646532]
[1748507210930,3.896,2720.5,2720.0,3.6764493]
[1748507211098,4.77214189,2720.6,2720.0,3.6764493]
[1748507211605,3.67580384,2720.5,2720.0,3.6764493]
[1748507212029,3.894,2720.4,2720.0,3.6764493]
[1748507212535,3.67580384,2720.5,2720.0,3.6764493]
[1748507213047,3.893,2720.4,2719.9,3.67647138]
[1748507213344,4.77206262,2720.6,2719.6,0.06]
[1748507213518,3.893,2720.5,2719.9,3.6764861]
[1748507213852,1.0964,2720.6,2719.8,3.67666978]
[1748507214059,7.57039496,2720.8,2719.9,0.06]
[1748507214363,4.8261504,2721.0,2719.9,0.06]
[1748507214364,3.895,2720.7,2720.3,3.67596791]
[1748507214526,3.895,2720.7,2720.4,3.67591347]
[1748507214710,3.67534322,2720.9,2720.3,3.67594099]
[1748507214911,3.894,2720.8,2719.9,0.06]
[1748507215105,3.6758624,2720.5,2719.9,0.06]
[1748507215347,7.56945491,2720.8,2720.2,3.6761801]
[1748507215539,3.894,2720.8,2719.9,0.06]
[1748507215844,3.67403923,2721.8,2720.2,0.06]
[1748507216047,3.67403923,2721.8,2720.7,3.67542011]
[1748507216048,3.67478422,2721.3,2720.7,3.67542011]
[1748507216444,3.67458657,2721.4,2720.5,3.67567065]
[1748507216758,3.904,2721.5,2720.7,3.67543131]
[1748507216925,3.67497355,2721.2,2720.2,0.06]
[1748507217127,3.67497355,2721.2,2720.5,3.67569446]
[1748507217324,3.67497355,2721.2,2720.5,3.67568276]
[1748507217325,3.67504603,2721.1,2720.5,3.67568276]
[1748507218254,3.67506544,2721.1,2720.3,3.67602735]
[1748507218456,3.67506544,2721.1,2720.5,3.67566077]
[1748507218625,3.67506544,2721.1,2720.6,3.67564554]
[1748507219025,1.1703,2721.2,2720.2,0.06]
[1748507219231,3.67499548,2721.1,2720.5,3.67572141]
[1748507219438,3.67514545,2721.0,2720.5,3.67572141]
[1748507219641,3.67538232,2720.9,2720.2,0.06]
[1748507219825,7.57314317,2721.0,2720.3,3.67606513]
[1748507220450,3.67525451,2720.9,2720.3,3.67606513]
[1748507220649,3.67525451,2720.9,2720.3,3.67602304]
[1748507221161,3.898,2721.0,2720.5,3.67579154]
[1748507221362,1.19,2721.5,2720.5,3.6757896]
[1748507221663,3.67500195,2721.1,2720.5,3.67572642]
[1748507222064,3.898,2721.4,2720.2,0.06]
[1748507222271,3.67488782,2721.2,2720.6,3.6755892]
[1748507222460,3.67493803,2721.2,2720.6,3.67561722]
[1748507222845,7.57085243,2721.2,2720.6,3.67555083]
[1748507223053,1.0989,2720.9,2719.2,3.73751439]
[1748507223232,1.1037,2720.2,2719.2,0.06]
[1748507223431,3.67650566,2720.0,2719.4,8.0]
[1748507223630,3.67643415,2720.1,2719.5,3.67707142]
[1748507223866,5.0187,2720.2,2719.2,0.06]
[1748507224222,5.0187,2720.2,2719.3,8.0]
[1748507224328,5.0187,2720.2,2719.7,3.67678445]
[1748507224670,5.0187,2720.2,2719.7,3.67684251]
[1748507224973,3.914,2720.3,2719.9,3.67648727]
[1748507225332,3.914,2720.4,2719.5,0.06]
[1748507225658,3.914,2720.4,2720.0,3.6764489]
[1748507225843,1.1877,2720.5,2719.5,0.06]
[1748507226175,1.1154,2720.8,2719.3,1.80003061]
[1748507226329,3.917,2720.7,2719.4,13.67728175]
[1748507226530,3.67570475,2720.6,2720.0,3.67637071]
[1748507227950,7.59758177,2720.7,2720.1,3.6762905]
[1748507228282,3.67567265,2720.6,2720.0,3.67636993]
[1748507228966,4.79084012,2720.8,2720.2,3.67612467]
[1748507229176,4.79084012,2720.8,2719.6,8.0]
[1748507229177,1.1154,2720.8,2719.8,3.6766668]
[1748507229379,0.05,2720.9,2720.5,3.67568079]
[1748507229575,0.05,2720.9,2720.4,3.67592861]
[1748507229775,0.05,2720.9,2720.0,11.6763729]
[1748507229776,0.05,2720.9,2720.6,3.6755847]
[1748507230154,0.05,2720.9,2719.9,3.6765091]
[1748507230458,0.05,2720.9,2720.5,3.67571696]
[1748507230665,0.05,2720.9,2719.8,5.47668833]
[1748507230854,0.05,2720.9,2720.1,8.0]
[1748507231048,0.05,2720.9,2720.5,3.67569046]
[1748507231249,0.05,2720.9,2720.6,3.67565634]
[1748507231687,0.05,2720.9,2719.9,7.59552681]
[1748507231888,0.05,2720.9,2720.1,8.0]
[1748507232091,0.05,2720.9,2720.4,3.67579503]
[1748507232294,0.05,2720.9,2720.5,3.67566908]
[1748507232588,0.05,2720.9,2720.6,3.67558524]
[1748507232790,0.05,2720.9,2720.1,11.67629288]
[1748507232791,0.05,2720.9,2720.3,8.0]
[1748507233001,0.05,2720.9,2720.7,3.67551056]
[1748507233149,0.05,2720.9,2720.8,3.67538959]
[1748507233348,0.05,2720.9,2720.4,3.67592846]
[1748507233549,0.05,2720.9,2720.3,8.0]
[1748507233753,0.05,2720.9,2720.8,11.67538959]
[1748507240056,0.05,2720.9,2720.8,11.70268959]
[1748507240820,0.05,2720.9,2720.8,8.0273]
[1748507241020,0.05,2720.9,2720.8,11.67538959]
[1748507241255,0.05,2720.9,2720.7,3.67551172]
[1748507241516,0.05,2720.9,2720.5,0.0273]
[1748507241721,0.05,2720.9,2720.8,8.0]
[1748507241915,0.05,2720.9,2720.7,8.0]
[1748507242228,0.05,2720.9,2720.7,11.67549387]
[1748507243230,0.05,2720.9,2720.8,3.67538959]
[1748507243469,0.05,2720.9,2720.7,3.67546352]
[1748507243633,0.05,2720.9,2720.3,9.0983]
[1748507244261,1.2046,2720.9,2720.7,3.67551099]
[1748507244468,1.2046,2720.9,2720.7,8.0]
[1748507244830,1.2046,2720.9,2720.7,3.67549703]
[1748507245457,1.2046,2720.9,2720.3,1.071]
[1748507245664,1.2046,2720.9,2720.6,8.0]
[1748507246160,1.2046,2720.9,2720.6,3.67558262]
[1748507246321,1.2046,2720.9,2720.4,3.67593001]
[1748507246721,1.2046,2720.9,2720.3,1.071]
[1748507246946,1.2046,2720.9,2720.7,8.0]
[1748507247861,1.2046,2720.9,2720.7,3.67551585]
[1748507249062,1.2046,2720.9,2720.3,1.071]
[1748507249063,0.05,2720.9,2720.3,1.071]
[1748507249248,0.05,2720.9,2720.7,8.0]
[1748507249434,0.05,2720.9,2720.6,8.0]
[1748507249640,0.05,2720.9,2720.5,3.67579005]
[1748507249939,0.05,2720.9,2720.7,3.67551188]
[1748507250523,0.05,2720.9,2720.8,3.67538959]
[1748507251028,0.05,2720.9,2720.7,11.67546781]
[1748507251237,0.05,2720.9,2720.6,11.67560486]
[1748507251621,0.05,2720.9,2720.7,3.67551406]
[1748507253255,0.05,2720.9,2720.6,3.67560263]
[1748507253964,0.05,2720.9,2720.3,4.74699744]
[1748507254140,1.1792,2720.8,2720.3,4.74697644]
[1748507254341,1.1792,2720.8,2720.5,11.67567918]
[1748507254547,1.1792,2720.8,2720.7,8.0]
[1748507254759,1.1792,2720.8,2720.5,8.0]
[1748507255126,1.1792,2720.8,2720.7,8.0]
[1748507259360,1.1792,2720.8,2720.5,11.67577008]
[1748507259667,1.1792,2720.8,2720.7,8.0]
[1748507260861,1.1792,2720.8,2720.6,3.67558227]
[1748507260862,1.1792,2720.8,2720.0,0.0273]
[1748507261049,3.67574069,2720.6,2720.0,3.67644853]
[1748507261249,3.67559323,2720.7,2720.2,8.0]
[1748507261777,3.67568664,2720.6,2720.2,8.0]
[1748507261978,3.6755927,2720.7,2720.2,3.67617953]
[1748507262643,3.6755927,2720.7,2720.2,8.0]
[1748507263477,3.67566963,2720.6,2720.2,8.0]
[1748507265617,5.0732,2720.8,2719.8,0.68837917]
[1748507265761,5.0732,2720.8,2720.4,3.67589525]
[1748507266099,3.894,2720.7,2720.4,3.67589525]
[1748507266262,1.1792,2720.8,2719.9,3.67660575]
[1748507266263,1.1792,2720.8,2720.6,3.67565877]
[1748507266463,1.1792,2720.8,2720.6,3.67562191]
[1748507266799,3.943,2720.9,2720.6,3.67562191]
[1748507267013,7.61834185,2720.9,2720.3,3.70326341]
[1748507267170,7.61833836,2720.9,2720.3,3.67596341]
[1748507267360,3.943,2720.9,2720.3,3.67596341]
[1748507267700,3.943,2720.9,2720.5,8.0]
[1748507267701,0.05,2720.9,2720.5,8.0]
[1748507268075,0.05,2720.9,2720.1,0.0273]
[1748507268274,0.05,2720.9,2720.5,3.67568714]
[1748507268802,3.72534243,2720.9,2720.4,8.0]
[1748507269295,0.05,2720.9,2720.1,0.0273]
[1748507269722,0.05,2720.9,2720.5,3.6757677]
[1748507269918,0.05,2720.9,2720.6,3.67565849]
[1748507270255,0.05,2720.9,2720.8,11.67538959]
[1748507272301,0.05,2720.9,2720.3,1.057]
[1748507272302,1.2277,2720.9,2719.0,11.61174201]
[1748507272533,4.85316843,2720.8,2720.2,3.67619639]
[1748507272737,1.1777,2720.8,2720.3,11.67595708]
[1748507273036,1.1777,2720.8,2720.3,3.67595708]
[1748507273521,1.1777,2720.8,2720.3,3.67597366]
[1748507273684,3.67553948,2720.7,2720.2,8.0]
[1748507273887,8.74616614,2720.8,2720.2,8.0]
[1748507274111,8.74616614,2720.8,2720.2,11.67617518]
[1748507274315,8.74616614,2720.8,2720.2,4.50063968]
[1748507274524,8.74616614,2720.8,2720.3,3.67606329]
[1748507274734,1.1777,2720.8,2719.8,3.67674093]
[1748507275025,0.05,2720.9,2720.8,3.67538959]
[1748507275243,0.05,2720.9,2720.8,4.92868275]
[1748507275605,0.05,2720.9,2720.8,3.67538959]
[1748507276319,0.05,2720.9,2720.8,11.67538959]
[1748507281727,0.05,2720.9,2720.8,20.53439559]
[1748507282237,0.05,2720.9,2720.8,18.27439459]
[1748507282439,0.05,2720.9,2720.8,17.27439459]
[1748507283932,0.05,2720.9,2720.8,15.40235559]
[1748507284140,0.05,2720.9,2720.8,14.43849859]
[1748507288408,0.05,2720.9,2720.8,7.25972397]
[1748507288641,0.05,2720.9,2720.8,10.93511356]
[1748507289515,0.7169,2721.5,2721.3,3.67467273]
[1748507289730,0.7169,2721.5,2721.2,3.67480705]
[1748507289937,0.7169,2721.5,2721.3,3.67470883]
[1748507290255,0.7169,2721.5,2721.2,3.67479012]
[1748507290551,0.7169,2721.5,2720.9,10.0]
[1748507290552,0.7169,2721.5,2720.9,3.67520852]
[1748507291111,0.7169,2721.5,2721.1,3.67497685]
[1748507291508,0.7169,2721.5,2721.2,3.67483061]
[1748507291708,0.7169,2721.5,2721.2,3.67477545]
[1748507292115,0.7169,2721.5,2721.3,8.0]
[1748507292910,0.7169,2721.5,2721.2,8.0]
[1748507293355,0.7169,2721.5,2721.1,8.0]
[1748507293691,0.7169,2721.5,2721.1,11.67493848]
[1748507294360,0.7169,2721.5,2721.2,3.67482833]
[1748507294510,0.7169,2721.5,2721.0,3.67506034]
[1748507294716,0.7169,2721.5,2721.1,11.67489754]
[1748507295011,0.7169,2721.5,2721.1,8.0]
[1748507295683,4.3913458,2721.5,2721.1,8.0]
[1748507296020,0.7169,2721.5,2721.1,8.0]
[1748507296215,4.39137801,2721.5,2721.1,8.0]
[1748507297537,0.7169,2721.5,2720.7,1.057]
[1748507298019,4.79739402,2721.4,2720.8,11.67525616]
[1748507298213,1.1228,2721.4,2721.0,3.67510753]
[1748507298910,1.1228,2721.4,2721.1,3.67496182]
[1748507300557,1.1228,2721.4,2721.0,3.67507171]
[1748507301735,1.1228,2721.4,2721.0,3.67507077]
[1748507302532,1.1228,2721.4,2721.1,3.67495683]
[1748507302738,3.891,2721.3,2721.2,3.67481795]
[1748507302933,3.891,2721.3,2721.1,3.6749412]
[1748507303466,5.0138,2721.4,2721.1,3.6749412]
[1748507303629,5.0138,2721.4,2720.8,8.0]
[1748507303834,5.0138,2721.4,2721.1,3.6749825]
[1748507304016,1.1228,2721.4,2721.1,3.6749825]
[1748507304220,1.1228,2721.4,2720.8,8.0]
[1748507304464,1.1228,2721.4,2721.2,3.67483616]
[1748507305042,1.1228,2721.4,2721.3,3.67471429]
[1748507305552,1.1228,2721.4,2721.2,3.6747976]
[1748507305754,1.1228,2721.4,2721.3,3.67471429]
[1748507306272,1.1228,2721.4,2721.2,3.67477701]
[1748507308627,1.1228,2721.4,2721.1,8.0]
[1748507308960,1.1228,2721.4,2720.9,8.0]
[1748507308961,4.79744552,2721.4,2720.9,8.0]
[1748507309283,4.79744552,2721.4,2720.9,11.67524624]
[1748507309432,1.1228,2721.4,2720.9,11.67524624]
[1748507310228,1.1228,2721.4,2721.0,3.67502657]
[1748507310623,1.1228,2721.4,2720.7,1.057]
[1748507310624,1.1228,2721.4,2721.2,3.67482172]
[1748507311038,1.1228,2721.4,2721.1,3.67492388]
[1748507311561,5.0138,2721.4,2721.1,3.67492388]
[1748507312967,5.0138,2721.4,2721.1,3.67496214]
[1748507313338,1.1228,2721.4,2721.2,3.67479903]
[1748507313539,5.0128,2721.4,2721.1,3.67491693]
[1748507314843,5.0128,2721.4,2721.2,3.67484224]
[1748507315244,5.0128,2721.4,2721.0,11.67509664]
[1748507315245,5.0128,2721.4,2721.1,3.67492472]
[1748507316858,5.0128,2721.4,2721.0,2.9325025]
[1748507317365,5.0128,2721.4,2721.1,3.67491919]
[1748507317844,5.0128,2721.4,2720.9,3.67518607]
[1748507318047,5.0128,2721.4,2721.0,3.67509737]
[1748507318473,1.1228,2721.4,2720.6,0.492]
[1748507318660,3.89,2721.4,2721.3,3.67464185]
[1748507319274,3.89,2721.4,2721.2,3.67477921]
[1748507319583,3.89,2721.4,2721.3,3.67471429]
[1748507319783,3.89,2721.4,2721.2,3.67479351]
[1748507320652,3.89,2721.4,2721.0,3.67508455]
[1748507320653,3.89,2721.4,2721.0,3.67505019]
[1748507320849,3.89,2721.4,2721.1,3.67497168]
[1748507320850,1.1802,2721.3,2721.1,3.67497168]
[1748507321562,1.1802,2721.3,2721.0,3.67507664]
[1748507321777,1.1802,2721.3,2721.1,3.67496947]
[1748507322154,1.1802,2721.3,2720.9,3.67516311]
[1748507322354,1.1802,2721.3,2720.6,12.16760701]
[1748507322355,1.1802,2721.3,2721.0,3.67501802]
[1748507322984,1.1802,2721.3,2720.6,12.16760701]
[1748507323162,1.1802,2721.3,2721.0,3.675035]
[1748507323367,1.1802,2721.3,2720.9,3.67518492]
[1748507323588,1.1802,2721.3,2721.0,8.0]
[1748507324258,3.7116043,2721.2,2720.8,8.0]
[1748507324486,3.67487873,2721.2,2720.8,8.0]
[1748507324689,4.85497117,2721.3,2720.8,8.0]
[1748507324993,1.1802,2721.3,2720.8,8.0]
[1748507325196,3.67486229,2721.2,2720.5,3.67576416]
[1748507325398,4.85497874,2721.3,2720.7,3.6753933]
[1748507325600,4.85497874,2721.3,2720.8,8.0]
[1748507325963,4.85497874,2721.3,2720.9,3.67524649]
[1748507325964,1.1802,2721.3,2720.9,3.67524649]
[1748507327007,1.1802,2721.3,2720.8,11.67531427]
[1748507327301,1.1802,2721.3,2720.8,8.0]
[1748507327973,1.1802,2721.3,2720.9,3.67523124]
[1748507328579,1.1802,2721.3,2720.8,11.67532454]
[1748507328990,1.1802,2721.3,2720.9,3.67524528]
[1748507330106,5.0692,2721.3,2720.9,8.0]
[1748507330466,8.7439826,2721.3,2720.9,8.0]
[1748507330889,5.0692,2721.3,2720.9,8.0]
[1748507331902,8.74400803,2721.3,2720.9,8.0]
[1748507332081,3.67485909,2721.2,2720.7,3.67546181]
[1748507332403,8.74398038,2721.3,2720.8,8.0]
[1748507332607,3.67485554,2721.2,2720.8,8.0]
[1748507332805,3.67484933,2721.2,2720.6,11.67563111]
[1748507332970,3.67484933,2721.2,2720.8,8.0]
[1748507334209,3.67484933,2721.2,2720.7,3.67550958]
[1748507334210,1.2212,2720.9,2720.4,3.67590214]
[1748507334413,5.1102,2720.9,2720.1,0.5246]
[1748507334594,5.1102,2720.9,2720.1,3.67633542]
[1748507334595,3.71211516,2720.8,2720.1,3.67633542]
[1748507334796,3.71211516,2720.8,2719.9,0.5246]
[1748507334797,3.67538959,2720.8,2719.9,0.5246]
[1748507335014,3.67567819,2720.6,2720.1,3.67625442]
[1748507335324,3.889,2720.5,2720.0,8.0]
[1748507335469,3.889,2720.5,2720.1,3.67632441]
[1748507335678,1.1393,2720.4,2720.1,3.67630707]
[1748507335932,1.1393,2720.4,2720.2,8.0]
[1748507336587,1.1393,2720.4,2720.3,11.67606513]
[1748507337689,1.1393,2720.4,2720.3,8.0]
[1748507339188,1.1393,2720.4,2720.2,3.67611372]
[1748507340613,1.1393,2720.4,2720.2,3.6761098]
[1748507340829,1.1393,2720.4,2720.2,3.67620011]
[1748507341180,1.1393,2720.4,2720.0,8.0]
[1748507341621,4.81526996,2720.4,2719.9,11.67654919]
[1748507341781,1.1393,2720.4,2719.8,0.67365342]
[1748507342119,1.1393,2720.4,2720.1,8.0]
[1748507342682,1.1393,2720.4,2720.2,3.67611126]
[1748507343094,1.1393,2720.4,2720.1,8.0]
[1748507343290,1.1393,2720.4,2720.0,3.67645284]
[1748507343715,1.1393,2720.4,2720.1,8.0]
[1748507344415,1.1393,2720.4,2719.9,3.67659929]
[1748507344635,1.1393,2720.4,2720.1,8.0]
[1748507345431,1.1393,2720.4,2720.1,11.67631619]
[1748507345734,3.67535642,2720.9,2720.1,11.67631619]
[1748507345735,3.888,2720.3,2720.1,8.0]
[1748507345937,3.888,2720.3,2720.2,11.67608641]
[1748507347521,3.888,2720.3,2720.2,8.0]
[1748507347724,3.888,2720.3,2719.9,3.6764992]
[1748507347725,1.1558,2720.2,2719.9,3.6764992]
[1748507347924,1.1558,2720.2,2720.0,3.67645478]
[1748507349719,1.148,2720.6,2720.1,11.67633542]
[1748507349927,1.148,2720.6,2719.7,12.20144943]
[1748507349928,3.887,2720.5,2720.2,3.67612707]
[1748507350705,3.887,2720.4,2720.2,3.67620027]
[1748507350910,3.887,2720.4,2720.3,3.67606513]
[1748507351747,3.887,2720.4,2720.0,8.0]
[1748507351748,1.148,2720.6,2719.8,8.0]
[1748507351903,1.1831,2721.0,2720.5,3.67579489]
[1748507352123,1.1831,2721.0,2720.7,3.67540683]
[1748507353145,1.1831,2721.0,2720.6,3.67562171]
[1748507353536,3.67525451,2720.9,2720.2,3.67617284]
[1748507353940,3.887,2720.8,2720.5,8.0]
[1748507354137,3.887,2720.8,2720.3,3.67604571]
[1748507354361,3.887,2720.8,2720.4,11.67580205]
[1748507354661,3.887,2720.8,2720.5,3.67577718]
[1748507355069,3.887,2720.8,2720.4,11.67587569]
[1748507355563,3.887,2720.8,2720.2,3.67616362]
[1748507355796,3.887,2720.8,2720.4,3.67593001]
[1748507356075,3.887,2720.8,2720.1,8.5246]
[1748507356369,3.887,2720.8,2720.4,3.67585908]
[1748507357881,3.887,2720.8,2720.6,8.0]
[1748507358573,4.85827986,2721.0,2720.6,8.0]
[1748507358574,1.1831,2721.0,2720.6,8.0]
[1748507359038,3.886,2720.9,2720.6,8.0]
[1748507359539,3.886,2720.9,2720.6,3.67555316]
[1748507360736,3.886,2720.9,2720.5,11.67575126]
[1748507361273,1.1095,2720.8,2720.0,8.0]
[1748507361505,3.886,2720.9,2719.9,0.4577]
[1748507361506,3.67587724,2720.5,2719.9,11.67653473]
[1748507361788,1.1095,2720.3,2719.9,11.67653473]
[1748507362583,3.885,2720.3,2720.0,8.0]
[1748507362755,3.885,2720.3,2720.0,11.6764588]
[1748507362944,3.885,2720.3,2719.9,11.67649013]
[1748507363284,3.885,2720.3,2719.9,8.0]
[1748507363445,3.885,2720.3,2720.0,3.67640197]
[1748507364483,3.885,2720.3,2719.8,8.0]
[1748507364484,3.67620027,2720.2,2719.8,8.0]
[1748507364688,4.76750911,2720.2,2719.8,8.0]
[1748507364994,1.0913,2720.2,2719.9,3.67659408]
[1748507365199,1.0913,2720.2,2720.0,8.0]
[1748507365400,1.0913,2720.2,2720.0,3.67646969]
[1748507365563,1.0913,2720.2,2719.9,3.6765716]
[1748507366384,1.1406,2720.4,2720.0,3.67642633]
[1748507366572,3.885,2720.1,2719.8,3.67662621]
[1748507366887,3.885,2720.1,2719.9,8.0]
[1748507368782,3.6760853,2720.3,2719.9,8.0]
[1748507368988,3.885,2720.2,2719.9,8.0]
[1748507369498,3.885,2720.2,2719.9,3.6765912]
[1748507369712,3.885,2720.2,2719.5,0.4577]
[1748507369713,3.885,2720.2,2720.0,11.67647044]
[1748507369927,3.885,2720.2,2719.9,11.67653975]
[1748507370295,3.885,2720.2,2719.8,8.0]
[1748507370499,3.885,2720.2,2719.9,3.67658528]
[1748507370953,1.1406,2720.4,2719.8,3.67671726]
[1748507371111,3.884,2720.1,2720.0,8.0]
[1748507371489,3.884,2720.1,2719.9,8.0]
[1748507371691,3.884,2720.1,2719.5,0.4577]
[1748507372231,3.884,2720.1,2719.9,3.67660228]
[1748507372624,3.884,2720.1,2720.0,8.0]
[1748507373416,3.884,2720.1,2720.0,11.67647058]
[1748507376436,3.884,2720.1,2719.8,3.67673654]